[Event "FIDE WYCC Open U14 2023"]
[Site "Montesilvano"]
[Date "2023.11.13"]
[Round "1.23"]
[White "Fulgentini, Edoardo"]
[Black "Akhmedov, David"]
[Result "0-1"]
[ECO "B53"]
[WhiteElo "1705"]
[BlackElo "2240"]
[Annotator "ChessBase"]
[PlyCount "62"]
[EventDate "2023.11.13"]
[EventType "swiss"]
[EventCountry "ITA"]
[SourceTitle "playchess.com"]
[Source "ChessBase"]
[SourceQuality "1"]
[TimeControl "40/5400+30:1800+30"]

1. e4 {[%emt 0:00:02]} c5 {[%emt 0:00:11]} 2. Nf3 {[%emt 0:00:04]} d6 {[%emt 0:00:32]} 3. d4 {[%emt 0:00:04]} cxd4 {[%emt 0:00:06]} 4. Qxd4 {[%emt 0:00:03]} Nc6 {[%emt 0:00:28]} 5. Bb5 {[%emt 0:00:05]} a6 {[%emt 0:01:25]} 6. Bxc6+ {[%emt 0:00:15]} bxc6 {[%emt 0:00:03]} 7. c4 {[%emt 0:00:33]} e5 {[%emt 0:00:19]} 8. Qd3 {[%emt 0:00:22]} Ne7 {[%emt 0:02:12]} 9. Nc3 {[%emt 0:03:56]} Ng6 {[%emt 0:01:07]} 10. Be3 {[%emt 0:05:25]} Be6 {[%emt 0:05:17]} 11. Ng5 {[%emt 0:13:57]} Bd7 {[%emt 0:09:49]} 12. c5 {[%emt 0:12:00]} Nh4 {[%emt 0:20:18]} 13. O-O-O {[%emt 0:05:20]} Nxg2 {[%emt 0:23:10]} 14. cxd6 {[%emt 0:09:25]} Nh4 {[%emt 0:05:49]} 15. f4 {[%emt 0:10:33]} h6 {[%emt 0:12:11]} 16. Nxf7 {[%emt 0:03:07]} Kxf7 {[%emt 0:00:02]} 17. fxe5 {[%emt 0:02:12]} Qe8 {[%emt 0:01:28]} 18. Bb6 {[%emt 0:06:42]} Qxe5 {[%emt 0:04:32]} 19. Qc4+ {[%emt 0:03:58]} Kg6 {[%emt 0:07:27]} 20. Rhf1 {[%emt 0:04:12]} Kh7 {[%emt 0:01:40]} 21. Qf7 {[%emt 0:06:13]} Be6 {[%emt 0:01:29]} 22. Qc7 {[%emt 0:00:21]} Rc8 {[%emt 0:00:35]} 23. d7 {[%emt 0:00:48]} Rxc7 {[%emt 0:00:20]} 24. Bxc7 {[%emt 0:02:52]} Qg5+ {[%emt 0:00:31]} 25. Bf4 {[%emt 0:00:01]} Qd8 {[%emt 0:00:01]} 26. Bc7 {[%emt 0:00:01]} Qxd7 {[%emt 0:00:01]} 27. Rxd7 {[%emt 0:01:04]} Bxd7 {[%emt 0:00:03]} 28. Bg3 {[%emt 0:01:08]} Ng6 {[%emt 0:00:10]} 29. Rf7 {[%emt 0:00:13]} Be7 {[%emt 0:00:33]} 30. Be5 {[%emt 0:01:29]} Nxe5 {[%emt 0:00:14]} 31. Rxe7 {[%emt 0:00:09]} Re8 {[%emt 0:00:02]} 0-1

[Event "FIDE WYCC Open U14 2023"]
[Site "Montesilvano"]
[Date "2023.11.13"]
[Round "1.24"]
[White "Ljepic, Andrej"]
[Black "Kao, Jamison Edrich"]
[Result "1-0"]
[ECO "B30"]
[WhiteElo "2236"]
[BlackElo "1701"]
[Annotator "ChessBase"]
[PlyCount "147"]
[EventDate "2023.11.13"]
[EventType "swiss"]
[EventCountry "ITA"]
[SourceTitle "playchess.com"]
[Source "ChessBase"]
[SourceQuality "1"]
[TimeControl "40/5400+30:1800+30"]

1. e4 {[%emt 0:00:06]} c5 {[%emt 0:00:01]} 2. Nf3 {[%emt 0:00:07]} Nc6 {[%emt 0:00:02]} 3. c3 {[%emt 0:00:11]} Nf6 {[%emt 0:00:03]} 4. e5 {[%emt 0:00:06]} Nd5 {[%emt 0:00:03]} 5. Bc4 {[%emt 0:00:07]} Nb6 {[%emt 0:00:03]} 6. Bb3 {[%emt 0:00:06]} c4 {[%emt 0:00:03]} 7. Bc2 {[%emt 0:00:05]} Qc7 {[%emt 0:00:02]} 8. Qe2 {[%emt 0:00:34]} g5 {[%emt 0:00:02]} 9. Na3 {[%emt 0:02:01]} g4 {[%emt 0:07:23]} 10. Nb5 {[%emt 0:00:10]} Qb8 {[%emt 0:00:07]} 11. Nh4 {[%emt 0:00:54]} a6 {[%emt 0:06:16]} 12. Nd6+ {[%emt 0:09:59]} exd6 {[%emt 0:00:03]} 13. exd6+ {[%emt 0:00:06]} Kd8 {[%emt 0:00:02]} 14. Qe3 {[%emt 0:00:15]} Bxd6 {[%emt 0:09:34]} 15. Qxb6+ {[%emt 0:00:45]} Qc7 {[%emt 0:00:05]} 16. Qxc7+ {[%emt 0:00:46]} Kxc7 {[%emt 0:01:44]} 17. d4 {[%emt 0:04:28]} cxd3 {[%emt 0:01:18]} 18. Bxd3 {[%emt 0:00:10]} Re8+ {[%emt 0:00:31]} 19. Be3 {[%emt 0:02:37]} Bc5 {[%emt 0:05:10]} 20. Kd2 {[%emt 0:11:48]} Bxe3+ {[%emt 0:01:21]} 21. fxe3 {[%emt 0:00:06]} d6 {[%emt 0:02:05]} 22. Rhf1 {[%emt 0:04:50]} Ne5 {[%emt 0:00:25]} 23. Be2 {[%emt 0:02:07]} Be6 {[%emt 0:02:16]} 24. b3 {[%emt 0:00:18]} Rg8 {[%emt 0:03:59]} 25. Rf6 {[%emt 0:04:42]} Ng6 {[%emt 0:03:31]} 26. Nf5 {[%emt 0:04:03]} Bxf5 {[%emt 0:00:44]} 27. Rxf5 {[%emt 0:00:17]} Ne5 {[%emt 0:00:03]} 28. c4 {[%emt 0:01:45]} b6 {[%emt 0:00:07]} 29. Rh5 {[%emt 0:01:35]} Rg7 {[%emt 0:00:10]} 30. Rf1 {[%emt 0:00:33]} Rh8 {[%emt 0:14:49]} 31. b4 {[%emt 0:01:46]} h6 {[%emt 0:02:03]} 32. Rhf5 {[%emt 0:03:08]} Kc6 {[%emt 0:03:38]} 33. a4 {[%emt 0:02:30]} Rg5 {[%emt 0:02:01]} 34. Rf6 {[%emt 0:04:32]} Rg6 {[%emt 0:00:28]} 35. R6f4 {[%emt 0:00:32]} Ra8 {[%emt 0:00:41]} 36. Bd3 {[%emt 0:03:26]} Nxd3 {[%emt 0:18:02]} 37. Kxd3 {[%emt 0:00:08]} Re8 {[%emt 0:04:49]} 38. Rxf7 {[%emt 0:02:18]} Rge6 {[%emt 0:00:04]} 39. Re1 {[%emt 0:03:46]} d5 {[%emt 0:00:13]} 40. cxd5+ {[%emt 0:00:00]} Kxd5 {[%emt 0:00:00]} 41. Rd7+ {[%emt 0:02:39]} Kc6 {[%emt 0:01:49]} 42. Rd4 {[%emt 0:00:41]} Rg6 {[%emt 0:05:56]} 43. Rc1+ {[%emt 0:02:46]} Kb7 {[%emt 0:00:04]} 44. g3 {[%emt 0:03:04]} Rge6 {[%emt 0:01:58]} 45. e4 {[%emt 0:07:32]} Rf6 {[%emt 0:00:48]} 46. Re1 {[%emt 0:07:21]} Rf2 {[%emt 0:08:41]} 47. Re2 {[%emt 0:04:00]} Rf3+ {[%emt 0:00:17]} 48. Re3 {[%emt 0:00:41]} Rf2 {[%emt 0:00:05]} 49. e5 {[%emt 0:00:28]} Rxh2 {[%emt 0:00:03]} 50. Rxg4 {[%emt 0:03:37]} Rb2 {[%emt 0:12:32]} 51. Rg7+ {[%emt 0:05:44]} Kc6 {[%emt 0:04:34]} 52. Rg6+ {[%emt 0:00:16]} Kc7 {[%emt 0:00:13]} 53. Kc3 {[%emt 0:01:19]} Rh2 {[%emt 0:00:12]} 54. Rg7+ {[%emt 0:02:08]} Kc6 {[%emt 0:01:22]} 55. Kd4 {[%emt 0:01:56]} Rc2 {[%emt 0:02:33]} 56. Rg6+ {[%emt 0:01:05]} Kc7 {[%emt 0:00:04]} 57. e6 {[%emt 0:00:39]} Rb2 {[%emt 0:03:53]} 58. Ke5 {[%emt 0:00:49]} Rxb4 {[%emt 0:00:15]} 59. Rg7+ {[%emt 0:00:23]} Kb8 {[%emt 0:01:28]} 60. Kf6 {[%emt 0:02:11]} Rc4 {[%emt 0:00:10]} 61. Kf7 {[%emt 0:01:32]} Rcc8 {[%emt 0:00:08]} 62. e7 {[%emt 0:00:24]} Ka7 {[%emt 0:07:05]} 63. Rg6 {[%emt 0:00:23]} b5 {[%emt 0:01:37]} 64. axb5 {[%emt 0:00:26]} axb5 {[%emt 0:00:03]} 65. Ra3+ {[%emt 0:00:57]} Kb7 {[%emt 0:01:04]} 66. Rb3 {[%emt 0:00:09]} Rh8 {[%emt 0:00:45]} 67. Rxb5+ {[%emt 0:00:11]} Ka7 {[%emt 0:00:44]} 68. Re5 {[%emt 0:00:09]} Rce8 {[%emt 0:01:00]} 69. Rxh6 {[%emt 0:00:57]} Rhg8 {[%emt 0:00:02]} 70. Rg5 {[%emt 0:00:45]} Rxg5 {[%emt 0:01:16]} 71. Kxe8 {[%emt 0:00:06]} Rxg3 {[%emt 0:00:11]} 72. Kf7 {[%emt 0:00:14]} Rc3 {[%emt 0:00:13]} 73. e8=Q {[%emt 0:00:25]} Rc7+ {[%emt 0:00:06]} 74. Kg6 {[%emt 0:00:20]} 1-0

[Event "FIDE WYCC Open U14 2023"]
[Site "Montesilvano"]
[Date "2023.11.13"]
[Round "1.25"]
[White "Glas, Bruno"]
[Black "Nurgaliyev, Sauat"]
[Result "0-1"]
[ECO "B90"]
[WhiteElo "1689"]
[BlackElo "2235"]
[Annotator "ChessBase"]
[PlyCount "102"]
[EventDate "2023.11.13"]
[EventType "swiss"]
[EventCountry "ITA"]
[SourceTitle "playchess.com"]
[Source "ChessBase"]
[SourceQuality "1"]
[TimeControl "40/5400+30:1800+30"]

1. e4 {[%emt 0:00:02]} c5 {[%emt 0:00:02]} 2. Nf3 {[%emt 0:00:11]} d6 {[%emt 0:00:06]} 3. d4 {[%emt 0:00:05]} cxd4 {[%emt 0:00:13]} 4. Nxd4 {[%emt 0:00:08]} Nf6 {[%emt 0:00:07]} 5. Nc3 {[%emt 0:00:06]} a6 {[%emt 0:00:05]} 6. Bc4 {[%emt 0:00:45]} e6 {[%emt 0:00:15]} 7. O-O {[%emt 0:00:14]} Nbd7 {[%emt 0:02:12]} 8. a3 {[%emt 0:03:37]} Nc5 {[%emt 0:05:32]} 9. Re1 {[%emt 0:05:17]} b5 {[%emt 0:01:18]} 10. Ba2 {[%emt 0:00:52]} Bb7 {[%emt 0:01:30]} 11. f3 {[%emt 0:08:41]} Rc8 {[%emt 0:00:51]} 12. Be3 {[%emt 0:04:27]} Be7 {[%emt 0:01:24]} 13. Qd2 {[%emt 0:02:47]} Qc7 {[%emt 0:00:59]} 14. Rad1 {[%emt 0:09:34]} O-O {[%emt 0:00:33]} 15. Qf2 {[%emt 0:03:39]} Rfd8 {[%emt 0:07:18]} 16. Qg3 {[%emt 0:04:59]} g6 {[%emt 0:04:28]} 17. Kh1 {[%emt 0:11:19]} d5 {[%emt 0:12:22]} 18. Bf4 {[%emt 0:05:24]} Qb6 {[%emt 0:02:25]} 19. e5 {[%emt 0:03:47]} Nh5 {[%emt 0:02:41]} 20. Qg4 {[%emt 0:01:06]} Nxf4 {[%emt 0:02:52]} 21. Qxf4 {[%emt 0:00:27]} b4 {[%emt 0:01:43]} 22. Nce2 {[%emt 0:02:51]} bxa3 {[%emt 0:10:10]} 23. bxa3 {[%emt 0:00:46]} Qa5 {[%emt 0:00:15]} 24. Ng3 {[%emt 0:03:46]} Na4 {[%emt 0:04:56]} 25. Nb3 {[%emt 0:07:49]} Qb5 {[%emt 0:01:11]} 26. Nd4 {[%emt 0:00:19]} Qd7 {[%emt 0:05:02]} 27. Bb3 {[%emt 0:01:40]} Nc3 {[%emt 0:03:23]} 28. Rd3 {[%emt 0:02:44]} a5 {[%emt 0:02:14]} 29. Ree3 {[%emt 0:03:39]} Nb5 {[%emt 0:01:53]} 30. Ba4 {[%emt 0:00:54]} Ba6 {[%emt 0:01:11]} 31. Rb3 {[%emt 0:01:01]} Rc4 {[%emt 0:00:50]} 32. Bxb5 {[%emt 0:01:53]} Bxb5 {[%emt 0:00:06]} 33. Nge2 {[%emt 0:01:56]} Ba4 {[%emt 0:02:40]} 34. Rb2 {[%emt 0:00:09]} Qa7 {[%emt 0:01:16]} 35. Rd3 {[%emt 0:01:44]} Rb8 {[%emt 0:01:36]} 36. Rxb8+ {[%emt 0:01:19]} Qxb8 {[%emt 0:00:01]} 37. Qd2 {[%emt 0:01:37]} Qxe5 {[%emt 0:00:52]} 38. g3 {[%emt 0:00:55]} Qc7 {[%emt 0:01:03]} 39. Nc3 {[%emt 0:00:56]} Bf6 {[%emt 0:02:28]} 40. Nxa4 {[%emt 0:00:00]} Rxa4 {[%emt 0:00:00]} 41. Nb5 Qc5 {[%emt 0:01:21]} 42. Rb3 {[%emt 0:03:44]} Rc4 {[%emt 0:01:46]} 43. c3 {[%emt 0:06:03]} a4 {[%emt 0:00:45]} 44. Rb1 {[%emt 0:01:38]} Kg7 {[%emt 0:01:22]} 45. Qe1 {[%emt 0:04:24]} e5 {[%emt 0:01:49]} 46. g4 {[%emt 0:02:01]} d4 {[%emt 0:03:59]} 47. cxd4 {[%emt 0:02:28]} exd4 {[%emt 0:00:16]} 48. h4 {[%emt 0:01:55]} Qd5 {[%emt 0:03:15]} 49. g5 {[%emt 0:02:37]} Qxf3+ {[%emt 0:00:17]} 50. Kg1 {[%emt 0:00:10]} Rc2 {[%emt 0:00:33]} 51. gxf6+ {[%emt 0:00:56]} Kh6 {[%emt 0:00:02]} 0-1

[Event "FIDE WYCC Open U14 2023"]
[Site "Montesilvano"]
[Date "2023.11.13"]
[Round "1.26"]
[White "Brattgjerd, Isak Vinh"]
[Black "Silva Arellano, Miguel Arturo"]
[Result "1-0"]
[ECO "C88"]
[WhiteElo "2235"]
[BlackElo "1684"]
[Annotator "ChessBase"]
[PlyCount "77"]
[EventDate "2023.11.13"]
[EventType "swiss"]
[EventCountry "ITA"]
[SourceTitle "playchess.com"]
[Source "ChessBase"]
[SourceQuality "1"]
[TimeControl "40/5400+30:1800+30"]

1. e4 {[%emt 0:00:02]} e5 {[%emt 0:00:05]} 2. Nf3 {[%emt 0:00:02]} Nc6 {[%emt 0:00:06]} 3. Bb5 {[%emt 0:00:04]} a6 {[%emt 0:00:11]} 4. Ba4 {[%emt 0:00:05]} Nf6 {[%emt 0:00:37]} 5. O-O {[%emt 0:00:06]} Be7 {[%emt 0:01:57]} 6. Re1 {[%emt 0:00:05]} b5 {[%emt 0:02:28]} 7. Bb3 {[%emt 0:00:01]} O-O {[%emt 0:00:27]} 8. a4 {[%emt 0:00:06]} Bb7 {[%emt 0:00:19]} 9. d3 {[%emt 0:01:02]} d6 {[%emt 0:00:20]} 10. c3 {[%emt 0:08:07]} Na5 {[%emt 0:02:02]} 11. Bc2 {[%emt 0:00:06]} c5 {[%emt 0:00:47]} 12. Nbd2 {[%emt 0:01:24]} Re8 {[%emt 0:01:43]} 13. Nf1 {[%emt 0:00:16]} Bf8 {[%emt 0:00:19]} 14. Ng3 {[%emt 0:01:25]} g6 {[%emt 0:00:36]} 15. d4 {[%emt 0:06:10]} Qb6 {[%emt 0:02:53]} 16. d5 {[%emt 0:05:33]} b4 {[%emt 0:01:13]} 17. cxb4 {[%emt 0:00:05]} cxb4 {[%emt 0:00:37]} 18. Be3 {[%emt 0:01:26]} Qd8 {[%emt 0:00:56]} 19. Nd2 {[%emt 0:04:26]} Rc8 {[%emt 0:01:28]} 20. Bd3 {[%emt 0:00:31]} Nd7 {[%emt 0:00:47]} 21. Qe2 {[%emt 0:00:11]} Ra8 {[%emt 0:06:37]} 22. Rec1 {[%emt 0:01:37]} Nc5 {[%emt 0:01:27]} 23. Bxc5 {[%emt 0:00:11]} dxc5 {[%emt 0:00:06]} 24. Ngf1 {[%emt 0:01:07]} Qe7 {[%emt 0:19:32]} 25. Ne3 {[%emt 0:02:08]} Bh6 {[%emt 0:00:56]} 26. Rc2 {[%emt 0:07:39]} Bxe3 {[%emt 0:04:27]} 27. Qxe3 {[%emt 0:00:07]} Rac8 {[%emt 0:01:02]} 28. Rac1 {[%emt 0:01:41]} f5 {[%emt 0:02:15]} 29. exf5 {[%emt 0:08:03]} Bxd5 {[%emt 0:12:44]} 30. Rxc5 {[%emt 0:00:24]} Rc6 {[%emt 0:02:42]} 31. Nf1 {[%emt 0:02:40]} Rec8 {[%emt 0:04:21]} 32. Rxa5 {[%emt 0:00:29]} Rxc1 {[%emt 0:00:46]} 33. Rxd5 {[%emt 0:00:05]} R8c5 {[%emt 0:04:42]} 34. f6 {[%emt 0:08:48]} Qc7 {[%emt 0:01:52]} 35. Rxc5 {[%emt 0:00:01]} Qxc5 {[%emt 0:00:16]} 36. Qh6 {[%emt 0:00:07]} Kf7 {[%emt 0:02:06]} 37. Qg7+ {[%emt 0:00:24]} Ke6 {[%emt 0:00:20]} 38. f7 {[%emt 0:00:15]} e4 {[%emt 0:00:06]} 39. f8=Q {[%emt 0:00:24]} 1-0

[Event "FIDE WYCC Open U14 2023"]
[Site "Montesilvano"]
[Date "2023.11.13"]
[Round "1.27"]
[White "Heino, Pessi"]
[Black "Mamedov, Edgar"]
[Result "0-1"]
[ECO "D45"]
[WhiteElo "1683"]
[BlackElo "2234"]
[Annotator "ChessBase"]
[PlyCount "104"]
[EventDate "2023.11.13"]
[EventType "swiss"]
[EventCountry "ITA"]
[SourceTitle "playchess.com"]
[Source "ChessBase"]
[SourceQuality "1"]
[TimeControl "40/5400+30:1800+30"]

1. Nf3 {[%emt 0:00:02]} d5 {[%emt 0:00:11]} 2. d4 {[%emt 0:00:05]} Nf6 {[%emt 0:00:11]} 3. c4 {[%emt 0:00:05]} e6 {[%emt 0:00:04]} 4. Nc3 {[%emt 0:00:05]} c6 {[%emt 0:00:06]} 5. e3 {[%emt 0:00:30]} Nbd7 {[%emt 0:00:06]} 6. b3 {[%emt 0:00:29]} Bb4 {[%emt 0:02:15]} 7. Bb2 {[%emt 0:00:22]} Ne4 {[%emt 0:01:18]} 8. Qc2 {[%emt 0:01:13]} Qa5 {[%emt 0:00:25]} 9. Rc1 {[%emt 0:02:02]} Qxa2 {[%emt 0:00:09]} 10. Bd3 {[%emt 0:01:50]} Bxc3+ {[%emt 0:02:01]} 11. Bxc3 {[%emt 0:00:06]} Qxc2 {[%emt 0:00:13]} 12. Rxc2 {[%emt 0:00:04]} Nxc3 {[%emt 0:00:20]} 13. Rxc3 {[%emt 0:00:12]} Ke7 {[%emt 0:01:08]} 14. Kd2 {[%emt 0:02:11]} dxc4 {[%emt 0:05:52]} 15. bxc4 {[%emt 0:04:35]} b6 {[%emt 0:00:47]} 16. e4 {[%emt 0:08:52]} Bb7 {[%emt 0:06:42]} 17. Re1 {[%emt 0:01:10]} f6 {[%emt 0:01:29]} 18. g4 {[%emt 0:07:07]} e5 {[%emt 0:06:20]} 19. d5 {[%emt 0:03:16]} g5 {[%emt 0:02:01]} 20. Ng1 {[%emt 0:02:35]} h5 {[%emt 0:01:29]} 21. h3 {[%emt 0:01:52]} hxg4 {[%emt 0:01:58]} 22. hxg4 {[%emt 0:00:09]} Nc5 {[%emt 0:03:06]} 23. Ne2 {[%emt 0:01:53]} cxd5 {[%emt 0:00:54]} 24. exd5 {[%emt 0:03:41]} Bc8 {[%emt 0:00:16]} 25. f3 {[%emt 0:01:12]} Rh3 {[%emt 0:00:28]} 26. Bc2 {[%emt 0:00:58]} Kd6 {[%emt 0:02:36]} 27. Bg6 {[%emt 0:01:37]} Bd7 {[%emt 0:00:45]} 28. Ra3 {[%emt 0:01:12]} Bxg4 {[%emt 0:01:21]} 29. Rf1 {[%emt 0:08:56]} Bd7 {[%emt 0:00:39]} 30. Nc3 {[%emt 0:04:28]} Rh2+ {[%emt 0:00:21]} 31. Kc1 {[%emt 0:00:41]} f5 {[%emt 0:04:15]} 32. Bf7 {[%emt 0:00:57]} Rh7 {[%emt 0:01:58]} 33. Be6 {[%emt 0:00:16]} Nxe6 {[%emt 0:03:17]} 34. dxe6 {[%emt 0:00:02]} Bxe6 {[%emt 0:00:10]} 35. Rd1+ {[%emt 0:00:21]} Kc5 {[%emt 0:01:07]} 36. Nd5 {[%emt 0:01:02]} Rd8 {[%emt 0:00:52]} 37. Re3 {[%emt 0:00:48]} Bxd5 {[%emt 0:00:43]} 38. Rxe5 {[%emt 0:00:13]} Kxc4 {[%emt 0:00:07]} 39. Rxf5 {[%emt 0:00:10]} Rhd7 {[%emt 0:00:13]} 40. Rxg5 {[%emt 0:00:00]} Bxf3 {[%emt 0:00:00]} 41. Rxd7 {[%emt 0:01:21]} Rxd7 {[%emt 0:00:32]} 42. Rg3 {[%emt 0:00:05]} Be4 {[%emt 0:00:09]} 43. Kb2 {[%emt 0:00:05]} b5 {[%emt 0:00:07]} 44. Rc3+ {[%emt 0:00:07]} Kd4 {[%emt 0:00:06]} 45. Rc1 {[%emt 0:00:06]} a5 {[%emt 0:00:12]} 46. Rd1+ {[%emt 0:00:05]} Bd3 {[%emt 0:00:04]} 47. Rh1 {[%emt 0:00:03]} Re7 {[%emt 0:00:06]} 48. Rh2 {[%emt 0:00:11]} Re2+ {[%emt 0:00:07]} 49. Rxe2 {[%emt 0:00:02]} Bxe2 {[%emt 0:00:10]} 50. Ka1 {[%emt 0:00:06]} Kc3 {[%emt 0:00:05]} 51. Kb1 {[%emt 0:00:05]} b4 {[%emt 0:00:04]} 52. Ka1 {[%emt 0:00:04]} b3 {[%emt 0:00:06]} 0-1

[Event "FIDE WYCC Open U14 2023"]
[Site "Montesilvano"]
[Date "2023.11.13"]
[Round "1.28"]
[White "Gkavardinas, Antonios"]
[Black "Mazzi, Leonardo"]
[Result "1-0"]
[ECO "B90"]
[WhiteElo "2230"]
[BlackElo "1671"]
[Annotator "ChessBase"]
[PlyCount "71"]
[EventDate "2023.11.13"]
[EventType "swiss"]
[EventCountry "ITA"]
[SourceTitle "playchess.com"]
[Source "ChessBase"]
[SourceQuality "1"]
[TimeControl "40/5400+30:1800+30"]

1. e4 {[%emt 0:00:03]} c5 {[%emt 0:00:09]} 2. Nf3 {[%emt 0:00:07]} d6 {[%emt 0:00:06]} 3. d4 {[%emt 0:00:12]} cxd4 {[%emt 0:00:03]} 4. Nxd4 {[%emt 0:00:11]} Nf6 {[%emt 0:00:05]} 5. Nc3 {[%emt 0:00:15]} a6 {[%emt 0:00:01]} 6. Be3 {[%emt 0:00:15]} e5 {[%emt 0:00:09]} 7. Nb3 {[%emt 0:00:17]} Be7 {[%emt 0:00:09]} 8. f3 {[%emt 0:00:24]} Be6 {[%emt 0:00:13]} 9. Qd2 {[%emt 0:00:28]} h5 {[%emt 0:00:35]} 10. Nd5 {[%emt 0:01:01]} Bxd5 {[%emt 0:00:08]} 11. exd5 {[%emt 0:00:09]} Nbd7 {[%emt 0:00:02]} 12. O-O-O {[%emt 0:01:31]} Qc7 {[%emt 0:12:43]} 13. c4 {[%emt 0:02:34]} a5 {[%emt 0:00:59]} 14. Kb1 {[%emt 0:02:09]} a4 {[%emt 0:02:23]} 15. Na1 {[%emt 0:00:42]} O-O {[%emt 0:01:44]} 16. Nc2 {[%emt 0:00:48]} Rfe8 {[%emt 0:06:49]} 17. Na3 {[%emt 0:04:46]} e4 {[%emt 0:12:34]} 18. h3 {[%emt 0:10:41]} exf3 {[%emt 0:19:27]} 19. gxf3 {[%emt 0:00:12]} Ne5 {[%emt 0:03:23]} 20. f4 {[%emt 0:01:39]} Ned7 {[%emt 0:01:52]} 21. Bd3 {[%emt 0:03:06]} Bf8 {[%emt 0:02:30]} 22. Bd4 {[%emt 0:05:15]} Ne4 {[%emt 0:01:23]} 23. Qg2 {[%emt 0:03:42]} Ndc5 {[%emt 0:05:19]} 24. f5 {[%emt 0:09:32]} Nxd3 {[%emt 0:09:01]} 25. Rxd3 {[%emt 0:00:12]} h4 {[%emt 0:03:07]} 26. Qg4 {[%emt 0:12:35]} Ng3 {[%emt 0:01:41]} 27. Rxg3 {[%emt 0:03:17]} hxg3 {[%emt 0:00:10]} 28. Bxg7 {[%emt 0:00:40]} f6 {[%emt 0:07:33]} 29. Bxf6+ {[%emt 0:02:20]} Bg7 {[%emt 0:00:28]} 30. Bc3 {[%emt 0:08:02]} Kf8 {[%emt 0:08:50]} 31. f6 {[%emt 0:01:11]} Bh6 {[%emt 0:01:07]} 32. Qg6 {[%emt 0:09:07]} Bf4 {[%emt 0:01:12]} 33. Rf1 {[%emt 0:00:46]} Be3 {[%emt 0:00:33]} 34. f7 {[%emt 0:00:22]} Rec8 {[%emt 0:00:28]} 35. Bg7+ {[%emt 0:00:23]} Ke7 {[%emt 0:00:09]} 36. Qe6+ {[%emt 0:00:08]} 1-0

[Event "FIDE WYCC Open U14 2023"]
[Site "Montesilvano"]
[Date "2023.11.13"]
[Round "1.29"]
[White "Mezni, Elyes"]
[Black "Rustamov, Rustam"]
[Result "0-1"]
[ECO "B50"]
[WhiteElo "1669"]
[BlackElo "2229"]
[Annotator "ChessBase"]
[PlyCount "116"]
[EventDate "2023.11.13"]
[EventType "swiss"]
[EventCountry "ITA"]
[SourceTitle "playchess.com"]
[Source "ChessBase"]
[SourceQuality "1"]
[TimeControl "40/5400+30:1800+30"]

1. e4 {[%emt 0:00:29]} c5 {[%emt 0:00:07]} 2. Nf3 {[%emt 0:00:09]} d6 {[%emt 0:00:05]} 3. d4 {[%emt 0:00:08]} Nf6 {[%emt 0:00:03]} 4. Nc3 {[%emt 0:04:41]} cxd4 {[%emt 0:00:07]} 5. Qxd4 {[%emt 0:00:23]} Nc6 {[%emt 0:00:07]} 6. Bb5 {[%emt 0:00:23]} Bd7 {[%emt 0:00:08]} 7. Bxc6 {[%emt 0:00:22]} Bxc6 {[%emt 0:00:06]} 8. Bg5 {[%emt 0:00:24]} e6 {[%emt 0:00:19]} 9. O-O-O {[%emt 0:01:31]} Be7 {[%emt 0:00:14]} 10. Rhe1 {[%emt 0:00:52]} O-O {[%emt 0:00:20]} 11. Kb1 {[%emt 0:01:16]} Qa5 {[%emt 0:02:01]} 12. Qd2 {[%emt 0:00:44]} Qc7 {[%emt 0:04:22]} 13. Nd4 {[%emt 0:05:27]} Rfd8 {[%emt 0:01:21]} 14. f3 {[%emt 0:09:15]} a6 {[%emt 0:00:40]} 15. g4 {[%emt 0:03:52]} b5 {[%emt 0:00:34]} 16. Bxf6 {[%emt 0:07:09]} Bxf6 {[%emt 0:00:28]} 17. g5 {[%emt 0:00:48]} Be7 {[%emt 0:00:38]} 18. Qe3 {[%emt 0:18:30]} Rac8 {[%emt 0:03:36]} 19. Rd2 {[%emt 0:07:17]} b4 {[%emt 0:01:43]} 20. Nce2 {[%emt 0:07:03]} Bd7 {[%emt 0:00:55]} 21. f4 {[%emt 0:01:48]} Qc5 {[%emt 0:01:58]} 22. Qf3 {[%emt 0:04:32]} a5 {[%emt 0:02:51]} 23. h4 {[%emt 0:03:40]} Bf8 {[%emt 0:02:41]} 24. Ng3 {[%emt 0:02:29]} b3 {[%emt 0:02:35]} 25. Nxb3 {[%emt 0:02:02]} Qb4 {[%emt 0:00:20]} 26. c3 {[%emt 0:01:28]} Qb7 {[%emt 0:00:40]} 27. Nxa5 {[%emt 0:03:02]} Qa6 {[%emt 0:00:41]} 28. Nb3 {[%emt 0:00:23]} Ra8 {[%emt 0:01:23]} 29. Nc1 {[%emt 0:00:12]} Bc6 {[%emt 0:00:18]} 30. f5 {[%emt 0:02:41]} d5 {[%emt 0:03:39]} 31. fxe6 {[%emt 0:01:54]} fxe6 {[%emt 0:01:05]} 32. Qg4 {[%emt 0:00:58]} dxe4 {[%emt 0:01:40]} 33. Rxd8 {[%emt 0:03:39]} Rxd8 {[%emt 0:00:04]} 34. Qxe6+ {[%emt 0:00:11]} Kh8 {[%emt 0:00:03]} 35. Nxe4 {[%emt 0:02:11]} Re8 {[%emt 0:00:20]} 36. Qf5 {[%emt 0:01:29]} Qa8 {[%emt 0:00:18]} 37. Nf6 {[%emt 0:03:23]} gxf6 {[%emt 0:00:04]} 38. Rxe8 {[%emt 0:01:43]} Qxe8 {[%emt 0:00:08]} 39. Qxf6+ {[%emt 0:00:33]} Bg7 {[%emt 0:00:12]} 40. Qf2 {[%emt 0:00:00]} Be4+ {[%emt 0:00:00]} 41. Ka1 {[%emt 0:01:00]} Bg6 {[%emt 0:00:10]} 42. Ne2 {[%emt 0:01:37]} Qe4 {[%emt 0:00:27]} 43. Qf1 {[%emt 0:02:21]} Qxh4 {[%emt 0:02:15]} 44. Qg1 {[%emt 0:01:15]} Qc4 {[%emt 0:01:09]} 45. Qd1 {[%emt 0:01:11]} Kg8 {[%emt 0:00:40]} 46. Qb3 {[%emt 0:01:41]} Qxb3 {[%emt 0:00:16]} 47. axb3 {[%emt 0:00:02]} Bf8 {[%emt 0:00:15]} 48. Nf4 {[%emt 0:06:03]} Be4 {[%emt 0:01:02]} 49. b4 {[%emt 0:01:04]} Be7 {[%emt 0:00:14]} 50. b3 {[%emt 0:03:36]} Bxg5 {[%emt 0:00:21]} 51. Ne2 {[%emt 0:00:20]} Bf3 {[%emt 0:00:46]} 52. Ng1 {[%emt 0:00:41]} Bg4 {[%emt 0:00:06]} 53. c4 {[%emt 0:00:58]} Be3 {[%emt 0:00:41]} 54. c5 {[%emt 0:00:06]} Bxg1 {[%emt 0:00:04]} 55. c6 {[%emt 0:00:07]} Bb6 {[%emt 0:00:04]} 56. Kb1 {[%emt 0:00:21]} h5 {[%emt 0:00:03]} 57. Kc2 {[%emt 0:00:06]} h4 {[%emt 0:00:03]} 58. Kd2 {[%emt 0:00:06]} h3 {[%emt 0:00:06]} 0-1